bitfinex-derivatives/quotes_ETHF0:USTF0_20250726
["timestamp","ask_amount","ask_price","bid_price","bid_amount"]
[1753541767320,6.2315,3733.0,3732.9,14.97292606]
[1753541767620,6.2315,3733.3,3733.2,1.99961]
[1753541767819,6.2315,3733.3,3733.2,4.45562931]
[1753541768016,2.5017,3733.3,3733.2,15.05703776]
[1753541770415,1.4948,3733.3,3733.2,15.05703776]
[1753541770616,9.4393,3733.6,3733.5,1.99957]
[1753541770816,9.4393,3733.6,3733.5,4.20447]
[1753541771115,8.5197,3733.6,3733.5,14.72172675]
[1753541771821,6.2315,3733.6,3733.5,14.72172675]
[1753541772622,6.2315,3733.6,3733.5,14.9728364]
[1753541772823,6.76695,3733.6,3733.5,14.4373664]
[1753541774719,6.2315,3733.6,3733.5,14.9728364]
[1753541775321,6.76695,3733.6,3733.5,14.4373664]
[1753541775522,6.76695,3733.6,3733.5,14.18625675]
[1753541775723,6.2315,3733.6,3733.5,14.43736293]
[1753541775924,6.76695,3733.6,3733.5,14.43736293]
[1753541777024,6.2315,3733.6,3733.5,14.97283293]
[1753541777419,2.5017,3733.6,3733.5,14.97283293]
[1753541777722,2.5017,3733.6,3733.5,18.18063293]
[1753541778119,2.5017,3733.6,3733.5,14.43736293]
[1753541778120,3.9877,3733.6,3733.5,14.43736293]
[1753541778314,3.92735,3733.6,3733.5,14.43736293]
[1753541778520,3.3919,3733.6,3733.5,14.97283293]
[1753541779020,6.76695,3733.6,3733.5,14.43735891]
[1753541780324,6.76695,3733.6,3733.5,10.76835891]
[1753541780524,6.76695,3733.6,3733.5,0.25110216]
[1753541780727,9.97475,3733.6,3733.5,0.25110216]
[1753541781625,3.02839,3733.3,3733.2,1.5269]
[1753541781825,6.2315,3733.3,3733.2,3.13897555]
[1753541782124,6.2315,3733.3,3733.2,14.5204323]
[1753541782526,6.76699,3733.3,3733.2,14.5204323]
[1753541783027,6.76699,3733.3,3733.2,14.4362806]
[1753541783928,6.76699,3733.3,3733.2,0.25112385]
[1753541786129,6.76699,3733.3,3733.2,1.77802385]
[1753541786332,6.2315,3733.3,3733.2,3.91902385]
[1753541786729,6.76699,3733.3,3733.2,3.91902385]
[1753541787133,6.76699,3733.3,3733.2,3.92312385]
[1753541787632,6.76699,3733.3,3733.2,14.4403806]
[1753541789132,3.03719,3733.3,3733.2,14.4403806]
[1753541789435,2.5017,3733.3,3733.2,14.9758906]
[1753541790036,5.81329,3733.3,3733.2,14.4403806]
[1753541790239,6.1599,3733.3,3733.2,14.9758906]
[1753541791025,6.69539,3733.3,3733.2,14.4403806]
[1753541791440,6.1599,3733.3,3733.2,14.9758906]
[1753541791640,6.69539,3733.3,3733.2,14.9758906]
[1753541791936,6.69539,3733.3,3733.2,14.4403806]
[1753541792740,6.69539,3733.3,3733.2,14.4387806]
[1753541792939,6.69539,3733.3,3733.2,13.1594806]
[1753541793146,6.69539,3733.3,3733.2,11.3671806]
[1753541793947,6.69539,3733.3,3733.2,12.2302806]
[1753541794245,6.69539,3733.3,3733.2,14.3140806]
[1753541794444,6.69539,3733.3,3733.2,10.7683806]
[1753541794445,6.1599,3733.3,3733.2,10.7683806]
[1753541794648,6.69539,3733.3,3733.2,10.7683806]
[1753541794949,6.1088,3732.7,3732.6,3.5289]
[1753541795245,6.1088,3732.7,3732.6,3.6130517]
[1753541795441,6.64438,3732.7,3732.6,14.13030845]
[1753541796648,6.64438,3732.7,3732.6,14.04455675]
[1753541798042,6.64438,3732.7,3732.6,14.04615675]
[1753541798243,6.64438,3732.7,3732.6,14.04455675]
[1753541799240,2.90791,3732.5,3732.4,2.78947695]
[1753541799443,3.01182,3732.4,3732.3,1.92637695]
[1753541799643,6.64442,3732.4,3732.3,0.0841517]
[1753541799848,6.64442,3732.4,3732.3,10.60140845]
[1753541800042,2.90794,3732.3,3732.2,3.37147695]
[1753541800247,6.1088,3732.3,3732.2,2.6617]
[1753541800445,6.1088,3732.3,3732.2,13.71460675]
[1753541800649,6.1088,3732.3,3732.2,15.6450837]
[1753541800851,5.2267,3732.3,3732.2,16.5081837]
[1753541802452,6.1088,3732.3,3732.2,16.5081837]
[1753541803151,6.64444,3732.3,3732.2,15.9709337]
[1753541803747,6.64444,3732.3,3732.2,15.9684337]
[1753541804147,6.64444,3732.3,3732.2,14.04205675]
[1753541804652,6.1088,3732.3,3732.2,14.58180675]
[1753541805550,6.64444,3732.3,3732.2,14.04615675]
[1753541806454,6.64444,3732.3,3732.2,14.04205675]
[1753541806952,6.64444,3732.3,3732.2,14.28969101]
[1753541807147,6.64444,3732.3,3732.2,10.76489101]
[1753541809256,6.64444,3732.3,3732.2,11.34689101]
[1753541809457,6.64444,3732.3,3732.2,13.43419101]
[1753541812459,6.64444,3732.3,3732.2,14.28969101]
[1753541813361,6.64444,3732.3,3732.2,14.29379101]
[1753541817061,6.64444,3732.3,3732.2,14.28969101]
[1753541819263,6.1088,3732.3,3732.2,14.29219101]
[1753541819560,6.64444,3732.3,3732.2,14.29219101]
[1753541820562,5.14944,3732.3,3732.2,14.29219101]
[1753541820763,4.6138,3732.3,3732.2,14.29219101]
[1753541821161,3.2078,3732.5,3732.4,0.53562]
[1753541821459,0.5356,3732.6,3732.5,2.1867]
[1753541821664,6.6161,3732.6,3732.5,2.92673426]
[1753541822069,6.0805,3732.6,3732.5,3.82373426]
[1753541823058,6.6161,3732.6,3732.5,3.82373426]
[1753541823668,6.0805,3732.6,3732.5,3.82373426]
[1753541824168,6.0805,3732.6,3732.5,4.35934426]
[1753541824369,6.0805,3732.6,3732.5,3.82373426]
[1753541824568,6.6161,3732.6,3732.5,3.82373426]
[1753541826260,6.0805,3732.6,3732.5,4.35934426]
[1753541826465,6.6161,3732.6,3732.5,3.82373426]
[1753541826868,6.0805,3732.6,3732.5,4.35934426]
[1753541827171,6.0805,3732.6,3732.5,14.87660101]
[1753541827469,6.0805,3732.6,3732.5,14.33954596]
[1753541827470,6.6161,3732.6,3732.5,14.33954596]
[1753541831874,6.0805,3732.6,3732.5,14.87515596]
[1753541832673,6.6161,3732.6,3732.5,14.33954596]
[1753541833276,6.0805,3732.6,3732.5,14.33954596]
[1753541833771,6.0805,3732.6,3732.5,14.87515596]
[1753541834069,6.0805,3732.6,3732.5,14.33954596]
[1753541834278,6.6161,3732.6,3732.5,14.33954596]
[1753541835577,1.4911,3732.6,3732.5,14.87515596]
[1753541835877,6.0805,3732.9,3732.8,4.11167]
[1753541836077,3.3443,3732.9,3732.8,4.35785921]
[1753541836375,2.7199,3733.1,3733.0,1.92494]
[1753541836568,3.36276678,3733.1,3733.0,4.35782921]
[1753541836769,6.72336678,3733.1,3733.0,14.33954596]
[1753541836978,6.72336678,3733.1,3733.0,14.87508596]
[1753541837874,6.72336678,3733.1,3733.0,14.33954596]
[1753541838078,2.13396678,3733.1,3733.0,14.87508596]
[1753541838273,3.18786678,3733.1,3733.0,14.87508596]
[1753541838473,5.82956678,3733.1,3733.0,14.87508596]
[1753541838675,2.13396678,3733.1,3733.0,14.87508596]
[1753541838876,4.41666678,3733.1,3733.0,14.87508596]
[1753541839180,7.25888678,3733.1,3733.0,14.33954596]
[1753541839781,7.25888678,3733.1,3733.0,14.09335675]
[1753541840682,7.25888678,3733.1,3733.0,14.33961401]
[1753541841181,7.25888678,3733.1,3733.0,0.24625726]
[1753541841681,3.00237,3732.8,3732.7,3.5761]
[1753541841886,6.61607,3732.8,3732.7,3.90649787]
[1753541842179,6.61607,3732.8,3732.7,14.42375462]
[1753541842377,7.25880662,3732.8,3732.7,3.01084617]
[1753541843382,7.25880662,3732.8,3732.7,13.52810292]
[1753541844580,7.25880662,3732.8,3732.7,0.24624617]
[1753541845084,7.25880662,3732.8,3732.7,3.82234617]
[1753541846087,7.25880662,3732.8,3732.7,0.24624617]
[1753541847486,3.97829,3732.6,3732.5,2.2864]
[1753541847682,5.48299,3732.6,3732.5,2.5326514]
[1753541847888,6.78399,3732.6,3732.5,14.31870815]
[1753541848083,6.78399,3732.6,3732.5,14.32240815]
[1753541849188,13.361,3732.8,3732.5,14.94216985]
[1753541849386,13.89657,3732.8,3732.7,1.3814]
[1753541849591,20.78818954,3732.8,3732.7,3.7689514]
[1753541849791,20.78818954,3732.8,3732.7,14.28620815]
[1753541850294,20.14497,3732.8,3732.7,14.28620815]
[1753541853192,20.14497,3732.8,3732.7,14.03995675]
[1753541853386,20.14497,3732.8,3732.7,14.29068184]
[1753541854694,20.14497,3732.8,3732.7,3.77342509]
[1753541854992,20.14497,3732.8,3732.7,14.29068184]
[1753541857702,20.14497,3732.8,3732.7,3.77342509]
[1753541857901,20.14497,3732.8,3732.7,14.29068184]
[1753541858198,20.14497,3732.8,3732.7,14.28838184]
[1753541859501,20.14497,3732.8,3732.7,14.30912296]
[1753541860000,20.14497,3732.8,3732.7,14.30542296]
[1753541862002,20.14497,3732.8,3732.7,14.30555349]
[1753541862197,19.6094,3732.8,3732.1,3.2078]
[1753541862402,6.78405,3732.2,3732.1,14.03395675]
[1753541862700,20.13905,3732.2,3732.1,14.74045675]
[1753541863095,6.78405,3732.2,3732.1,14.74045675]
[1753541863302,20.13905,3732.2,3732.1,14.74045675]
[1753541864097,6.78405,3732.2,3732.1,14.74045675]
[1753541864400,20.13905,3732.2,3732.1,3.5167]
[1753541865598,3.7532,3732.1,3731.5,4.17710553]
[1753541865799,6.78413,3731.7,3731.6,13.23985675]
[1753541865995,6.78413,3731.7,3731.6,10.51725675]
[1753541866307,6.78413,3731.7,3731.6,14.11810845]
[1753541866507,6.78413,3731.7,3731.6,14.38980845]
[1753541866800,6.78413,3731.7,3731.6,14.03395675]
[1753541866999,6.78413,3731.7,3731.3,2.4107]
[1753541867000,0.53577,3731.4,3731.3,2.4107]
[1753541867204,0.53577,3731.4,3731.3,3.7884]
[1753541867205,6.78417,3731.4,3731.3,3.7884]
[1753541867405,6.78417,3731.4,3731.3,14.30565675]
[1753541867704,6.78417,3731.4,3731.3,14.74045675]
[1753541868005,6.2484,3731.4,3731.3,14.74045675]
[1753541868204,1.5789,3731.4,3731.3,14.82460845]
[1753541868404,1.301,3731.7,3731.3,15.36038845]
[1753541868597,13.88873,3731.7,3731.6,12.32975675]
[1753541868902,13.88873,3731.7,3731.6,14.74045675]
[1753541869104,15.46763,3731.7,3731.6,14.82460845]
[1753541869310,17.80443,3731.7,3731.6,14.82460845]
[1753541869503,19.26383,3731.7,3731.6,14.82460845]
[1753541869702,20.13713,3731.7,3731.6,14.82460845]
[1753541869899,19.6014,3731.7,3731.6,14.82460845]
[1753541870102,18.7281,3731.7,3731.6,14.82460845]
[1753541870403,20.13712,3731.7,3731.6,10.60140845]
[1753541870708,6.78417,3731.4,3731.3,4.2232]
[1753541870904,6.2484,3731.4,3731.3,4.2232]
[1753541871103,1.5789,3731.4,3731.3,15.36038845]
[1753541871297,2.11465,3731.6,3731.5,4.2232]
[1753541871806,2.11464,3731.6,3731.5,14.74045675]
[1753541872007,1.5789,3731.6,3731.5,14.74045675]
[1753541872310,2.11464,3731.6,3731.5,14.74045675]
[1753541872504,1.5789,3731.6,3731.5,14.82460845]
[1753541873005,2.11464,3731.6,3731.5,14.82460845]
[1753541873311,6.78414,3731.6,3731.5,14.82460845]
[1753541873707,4.0741,3731.6,3731.5,14.82460845]
[1753541873903,2.11464,3731.6,3731.5,14.82460845]
[1753541874407,2.11464,3731.6,3731.5,15.06672855]
[1753541874603,1.301,3731.8,3731.5,12.65602855]
[1753541874604,1.5789,3731.8,3731.5,12.65602855]
[1753541874802,1.5789,3731.8,3731.7,14.74045675]
[1753541875002,6.78411,3731.8,3731.7,14.74045675]
[1753541876817,6.78411,3731.8,3731.7,14.98254741]
[1753541881520,3.2078,3731.9,3731.8,2.7307]
[1753541881819,3.7435,3731.9,3731.8,14.77425675]
[1753541882018,6.1524,3731.9,3731.8,14.77425675]
[1753541882217,9.7694,3731.9,3731.8,14.77425675]
[1753541883222,9.7694,3731.9,3731.8,15.01407017]
[1753541888528,9.2337,3731.9,3731.8,15.01407017]
[1753541888729,8.8936,3731.9,3731.8,15.01407017]
[1753541888932,9.7694,3731.9,3731.8,15.01407017]
[1753541890429,5.7634,3731.9,3731.8,15.09822187]
[1753541890732,2.05087,3732.1,3732.0,1.9067]
[1753541891030,4.31727,3732.1,3732.0,15.01407017]
[1753541891425,5.68577,3732.1,3732.0,15.01407017]
[1753541891627,6.56157,3732.1,3732.0,15.01407017]
[1753541893226,6.56157,3732.1,3732.0,15.01476164]
[1753541893422,5.1501,3732.1,3732.0,15.09891334]
[1753541893620,5.1501,3732.1,3732.0,15.63459334]
[1753541893832,5.1501,3732.1,3732.0,15.09891334]
[1753541894026,5.33557,3732.1,3732.0,4.64452334]
[1753541894226,3.4537,3731.3,3731.0,2.40863191]
[1753541894432,1.92945,3730.8,3730.7,7.47533191]
[1753541894630,1.92945,3730.8,3730.7,5.0667]
[1753541894928,3.98955,3730.8,3730.7,5.1508517]
[1753541895828,3.4537,3730.8,3730.7,5.1508517]
[1753541896028,3.4537,3730.8,3730.7,6.0520517]
[1753541898331,3.4537,3730.8,3730.7,6.5879217]
[1753541898730,3.4537,3730.8,3730.7,6.0520517]
[1753541899435,3.4537,3730.8,3730.7,6.5879217]
[1753541899836,3.4537,3730.8,3730.7,5.9679]
[1753541901337,3.4537,3730.8,3730.7,6.50377]
[1753541902438,3.4537,3730.8,3730.7,5.9679]
[1753541902740,3.4537,3730.8,3730.7,6.50377]
[1753541903037,1.3936,3730.8,3730.7,6.50377]
[1753541903434,1.8481,3731.0,3730.9,6.50374]
[1753541903633,0.3532,3731.0,3730.9,6.50374]
[1753541904230,3.2078,3731.1,3731.0,0.53582]
[1753541904437,3.2078,3731.1,3731.0,6.50372]
[1753541904734,6.0963,3731.1,3731.0,5.9679]
[1753541904934,6.63211,3731.1,3731.0,5.9679]
[1753541905240,7.19731,3731.1,3731.0,5.9679]
[1753541907141,7.19891,3731.1,3731.0,5.9679]
[1753541907442,6.6631,3731.1,3731.0,6.50372]
[1753541907642,6.6631,3731.1,3731.0,5.9679]
[1753541907845,6.6631,3731.1,3731.0,6.50372]
[1753541908144,6.6631,3731.1,3731.0,5.9679]
[1753541908344,7.19891,3731.1,3731.0,5.9679]
[1753541908643,6.6631,3731.1,3731.0,5.9679]
[1753541909041,19.9961,3731.1,3731.0,6.50372]
[1753541909242,19.9951,3731.1,3731.0,5.9679]
[1753541909644,19.03441,3731.1,3731.0,5.9679]
[1753541910247,5.1666,3731.1,3731.0,6.50372]
[1753541910449,5.1666,3731.1,3731.0,5.9679]
[1753541910841,6.5958,3731.1,3731.0,5.9679]
[1753541911041,6.5958,3731.1,3731.0,6.50372]
[1753541911243,16.5388,3731.1,3731.0,6.5878717]
[1753541911942,3.2078,3731.1,3731.0,6.5878717]
[1753541917249,3.6656,3731.1,3731.0,6.5878717]
[1753541917451,0.4578,3731.1,3731.0,6.5878717]
[1753541919450,2.9178,3731.3,3731.2,6.6171]
[1753541919954,2.9178,3731.3,3731.2,6.7012517]
[1753541920757,3.6535,3731.3,3731.2,6.7012517]
[1753541928970,1.887,3731.3,3731.2,6.7012517]
[1753541929271,2.9178,3731.3,3731.2,6.7012517]
[1753541931570,2.9211,3731.3,3731.2,6.7012517]
[1753541934271,2.9178,3731.3,3731.2,6.7012517]
[1753541934473,2.9178,3731.3,3731.2,6.6171]
[1753541935272,1.4886,3731.3,3731.2,6.6171]
[1753541935974,2.9178,3731.3,3731.2,6.6171]
[1753541936272,3.6535,3731.3,3731.2,6.6171]
[1753541937571,4.18928,3731.3,3731.2,4.8257]
[1753541937777,3.6535,3731.3,3731.2,6.6485]
[1753541940679,3.2078,3731.9,3731.4,6.1077]
[1753541940880,4.8546,3731.9,3731.8,6.64341]
[1753541941172,6.10390298,3731.9,3731.8,6.1077]
[1753541941480,8.02820298,3731.9,3731.8,6.1077]
[1753541941880,8.02960298,3731.9,3731.8,0.8811]
[1753541943783,1.6468,3731.5,3731.4,0.53577]
[1753541943984,6.7803,3731.5,3731.4,1.5010217]
[1753541944283,7.31605,3731.5,3731.4,0.8811]
[1753541944477,8.02938523,3731.5,3731.4,0.8811]
[1753541949586,8.02938523,3731.5,3731.4,2.3867]
[1753541950086,7.34238523,3731.5,3731.4,6.1077]
[1753541950282,8.02798523,3731.5,3731.4,6.1077]
[1753541951386,8.02938523,3731.5,3731.4,0.8811]
[1753541956594,8.02798523,3731.5,3731.4,2.3867]
[1753541957383,8.02798523,3731.5,3731.4,2.9862]
[1753541957588,8.02798523,3731.5,3731.4,4.2732]
[1753541958898,8.02938523,3731.5,3731.4,0.8811]
[1753541959299,8.02798523,3731.5,3731.4,2.3867]
[1753541959498,8.02798523,3731.5,3731.4,4.2732]
[1753541959893,8.02938523,3731.5,3731.4,0.8811]
[1753541960102,2.76569,3731.2,3731.1,5.2266]
[1753541960299,6.28582523,3731.2,3731.1,5.2266]
[1753541961297,6.28582523,3731.2,3731.1,2.7926]
[1753541961896,6.28582523,3731.2,3731.1,4.2192]
[1753541962194,6.28582523,3731.2,3731.1,6.1077]
[1753541964895,5.0367,3730.9,3730.8,2.3867]
[1753541965202,5.0367,3730.9,3730.8,6.1077]
[1753541965496,4.1542,3730.9,3730.8,6.1077]
[1753541965900,0.5359,3730.5,3729.9,2.61999812]
[1753541966095,9.2966,3730.5,3729.6,3.2078]
[1753541966290,3.2706,3729.7,3729.6,2.434]
[1753541966593,3.2078,3730.1,3729.4,3.37208468]
[1753541966594,2.3879,3729.5,3729.4,3.37208468]
[1753541966792,1.2763,3729.4,3729.2,0.01877053]
[1753541966999,6.0888,3729.3,3729.2,1.44537053]
[1753541967601,6.0888,3729.3,3729.2,2.45277053]
[1753541967799,6.62487,3729.3,3729.2,2.45277053]
[1753541968003,6.62487,3729.3,3729.2,5.15727053]
[1753541968300,6.0888,3729.3,3729.2,5.15727053]
[1753541968692,6.0888,3729.3,3729.2,6.05207053]
[1753541969001,6.62487,3729.3,3729.2,6.05207053]
[1753541969402,1.5423,3729.8,3729.4,0.53605]
[1753541969600,13.822,3729.8,3729.7,6.0622]
[1753541969996,20.0725,3729.8,3729.7,6.0622]
[1753541970401,16.39778,3730.0,3729.9,2.4629]
[1753541970595,20.07048,3730.0,3729.9,6.0622]
[1753541970801,20.79026838,3730.0,3729.9,5.1674]
[1753541971302,20.79026838,3730.0,3729.9,3.7137]
[1753541971796,20.79026838,3730.0,3729.9,0.8379]
[1753541972003,2.5446,3729.8,3729.7,3.9166]
[1753541972197,6.2505,3729.8,3729.7,5.1674]
[1753541972500,3.2078,3730.1,3729.4,3.2078]
[1753541972701,3.2078,3730.1,3730.0,6.59817]
[1753541974704,6.6603,3730.1,3730.0,6.59817]
[1753541974899,9.99425,3730.1,3730.0,5.1674]
[1753541975098,10.71425795,3730.1,3730.0,5.1674]
[1753541975298,9.99425,3730.1,3730.0,5.1674]
[1753541976801,0.53599,3729.9,3729.6,1.2508]
[1753541977007,6.2505,3729.8,3729.7,6.59821]
[1753541977304,6.2505,3729.8,3729.7,6.0622]
[1753541977499,6.7865,3729.8,3729.7,6.0622]
[1753541978398,6.7865,3729.8,3729.7,5.1674]
[1753541979003,6.7865,3729.8,3729.7,1.445]
[1753541979402,6.7865,3729.8,3729.7,0.8379]
[1753541979911,6.7865,3729.8,3729.7,5.1674]
[1753541980706,6.7865,3729.8,3729.7,3.7137]
[1753541981610,6.2505,3729.8,3729.7,3.7137]
[1753541981810,6.7865,3729.8,3729.7,3.7137]
[1753541982110,6.7865,3729.8,3729.7,5.1674]
[1753541982609,6.2505,3729.8,3729.7,5.1674]
[1753541983015,6.7865,3729.8,3729.7,5.1674]
[1753541983415,6.2505,3729.8,3729.7,5.1674]
[1753541983713,4.9948,3729.8,3729.7,6.59821]
[1753541984012,9.08636,3730.1,3730.0,2.4629]
[1753541984312,9.08636,3730.1,3730.0,6.0622]
[1753541984618,9.99426,3730.1,3730.0,6.0622]
[1753541984914,9.99426,3730.1,3730.0,5.1674]
[1753541985812,9.99426,3730.1,3730.0,3.7137]
[1753541986215,3.08058,3729.9,3729.8,2.8987]
[1753541986409,6.78648,3729.9,3729.8,4.1495]
[1753541986917,6.78648,3729.9,3729.8,5.1674]
[1753541987613,3.2078,3730.1,3729.6,4.1495]
[1753541987614,3.08061,3729.7,3729.6,4.1495]
[1753541987815,6.78651,3729.7,3729.6,6.0622]
[1753541988519,6.2505,3729.7,3729.6,6.0622]
[1753541988715,6.2505,3729.7,3729.6,4.6085]
[1753541988920,6.2505,3729.7,3729.6,6.0622]
[1753541989117,4.9948,3729.7,3729.6,6.0622]
[1753541989316,0.536,3729.8,3729.6,6.0622]
[1753541989520,0.536,3729.8,3729.7,6.0622]
[1753541989919,2.9862,3729.8,3729.7,6.0622]
[1753541990120,6.7865,3729.8,3729.7,6.0622]
[1753541990618,0.53605,3729.4,3729.3,0.8948]
[1753541990818,3.98855,3729.4,3729.3,3.3577]
[1753541991320,3.98855,3729.4,3729.3,6.0622]
[1753541991623,2.5778,3729.4,3729.3,6.59827]
[1753541991824,2.05965,3729.4,3729.3,6.0622]
[1753541992028,6.78655,3729.4,3729.3,6.0622]
[1753541992528,1.5236,3729.4,3729.3,6.59827]
[1753541992825,0.9079,3729.7,3729.5,2.4629]
[1753541993028,2.798,3729.9,3729.5,2.4629]
[1753541993226,2.4502,3729.9,3729.5,2.4629]
[1753541993418,2.4502,3729.9,3729.6,3.5993]
[1753541993624,4.1201,3729.9,3729.8,6.0622]
[1753541993827,5.53078,3729.9,3729.8,6.0622]
[1753541994028,6.78648,3729.9,3729.8,6.0622]
[1753541994429,7.50990167,3729.9,3729.8,6.0622]
[1753541995129,0.72342167,3729.9,3729.2,0.55484053]
[1753541995331,2.5446,3729.3,3729.2,3.91254053]
[1753541995530,4.9948,3729.3,3729.2,3.91254053]
[1753541995723,4.9948,3729.3,3729.2,6.61704053]
[1753541996126,1.5236,3729.3,3729.2,6.61704053]
[1753541996321,6.78654,3729.5,3729.4,2.4629]
[1753541996525,6.2505,3729.5,3729.4,6.59825]
[1753541996724,6.2505,3729.5,3729.4,6.0622]
[1753541996925,0.6157,3729.9,3729.8,6.0622]
[1753541997124,2.4502,3730.0,3729.8,6.59819]
[1753541997330,2.4502,3730.0,3729.9,6.1189]
[1753541997738,2.98616,3730.0,3729.9,6.1189]
[1753541997931,3.0833,3730.0,3729.9,6.1189]
[1753541998435,4.1056,3730.0,3729.9,6.1189]
[1753541998736,5.63486637,3730.0,3729.9,6.1189]
[1753541999033,6.86666637,3730.0,3729.9,6.1189]
[1753542000129,6.86666637,3730.0,3729.9,6.65488]
[1753542000330,5.63486637,3730.0,3729.9,6.65488]
[1753542000633,5.63486637,3730.0,3729.9,6.1189]
[1753542000827,6.86666637,3730.0,3729.9,6.1189]
[1753542001332,6.86666637,3730.0,3729.9,6.65488]
[1753542001828,6.86666637,3730.0,3729.9,6.1189]
[1753542002233,3.3471,3729.6,3729.3,1.196]
[1753542002434,1.33981,3730.4,3729.3,1.196]
[1753542002435,6.1377,3729.4,3729.3,5.79257]
[1753542002734,6.1377,3729.4,3729.3,6.65497]
[1753542003436,6.1377,3729.4,3729.3,6.1189]
[1753542003736,6.86290844,3729.4,3729.3,5.2565]
[1753542004829,6.86290844,3729.4,3729.3,6.65497]
[1753542005030,2.4459,3729.7,3729.4,3.6045]
[1753542005231,5.2506,3729.7,3729.6,2.5144]
[1753542005538,5.97562211,3729.7,3729.6,6.1189]
[1753542005732,6.86272211,3729.7,3729.6,6.1189]
[1753542006735,6.86272211,3729.7,3729.6,6.65493]
[1753542007231,0.72502211,3729.7,3729.6,6.65493]
[1753542007736,1.61212211,3729.7,3729.6,6.65493]
[1753542008029,0.8871,3729.7,3729.6,6.65493]
[1753542008433,3.2078,3729.8,3729.7,3.05041]
[1753542008633,3.93269384,3729.8,3729.7,6.65491]
[1753542009137,10.60638384,3729.8,3729.7,2.5144]
[1753542009334,6.92868384,3729.8,3729.4,0.8624]
[1753542009630,6.86259384,3729.7,3729.6,6.65492]
[1753542010240,7.39860384,3729.7,3729.6,6.65492]
[1753542010638,7.39860384,3729.7,3729.6,5.79252]
[1753542010841,7.39860384,3729.7,3729.6,4.24642]
[1753542011138,7.39860384,3729.7,3729.6,6.65492]
[1753542011139,0.8871,3729.7,3729.6,6.65492]
[1753542012934,3.2078,3729.8,3729.7,1.16791]
[1753542013141,21.3627,3730.2,3730.1,6.65485]
[1753542013338,23.31933563,3730.2,3730.1,6.65485]
[1753542014040,5.45283563,3730.2,3730.1,6.65485]
[1753542014241,9.3455,3730.2,3730.1,6.65485]
[1753542015444,9.88144,3730.2,3730.1,6.65485]
[1753542015741,9.3455,3730.2,3730.1,6.1189]
[1753542015936,9.3455,3730.2,3730.1,6.65485]
[1753542016344,17.0869,3730.2,3730.1,6.65485]
[1753542017040,3.8409,3730.2,3730.1,6.65485]
[1753542017239,9.3455,3730.2,3730.1,6.65485]
[1753542018646,6.5549,3730.2,3730.1,6.65485]
[1753542019049,9.88144,3730.2,3730.1,6.65485]
[1753542020347,9.88144,3730.2,3730.1,6.1189]
[1753542020639,9.88144,3730.2,3730.1,5.2565]
[1753542021042,9.88144,3730.2,3730.1,2.5144]
[1753542021341,9.88144,3730.2,3730.1,1.39735]
[1753542021647,9.88144,3730.2,3730.1,0.8614]
[1753542022145,6.1377,3730.0,3729.6,2.4085]
[1753542022341,6.67371,3729.7,3729.6,1.196]
[1753542022542,6.1377,3729.3,3729.2,5.27527053]
[1753542023144,6.1377,3729.3,3729.2,6.67375053]
[1753542027044,3.7153,3729.6,3729.5,0.53604]
[1753542027245,6.0771,3729.6,3729.5,6.63844]
[1753542027546,6.0771,3729.6,3729.2,0.01877053]
[1753542027747,6.55416,3729.3,3729.2,0.01877053]
[1753542028056,11.55416,3729.3,3729.2,0.01877053]
[1753542028443,6.55421,3729.0,3728.9,3.2078]
[1753542028647,6.0181,3729.0,3728.9,8.93682]
[1753542028849,19.2511,3729.0,3728.9,8.93682]
[1753542029150,19.2511,3729.0,3728.9,3.74392]
[1753542029748,19.2511,3729.0,3728.9,7.05812]
[1753542029952,6.0181,3729.0,3728.9,9.84632]
[1753542030347,6.0181,3729.0,3728.9,6.39412]
[1753542030550,6.0181,3729.0,3728.9,3.74392]
[1753542030749,6.0181,3729.0,3728.9,6.14862]
[1753542031050,6.0181,3729.0,3728.9,9.84632]
[1753542031650,6.0181,3729.0,3728.9,4.98172]
[1753542031852,6.0181,3729.0,3728.9,3.74392]
[1753542034355,4.8453,3729.0,3728.9,9.84632]
[1753542034557,13.229,3729.4,3729.3,0.53606]
[1753542034755,19.78315,3729.4,3729.3,2.7882]
[1753542034962,6.0181,3729.3,3729.2,0.53607]
[1753542036356,6.0181,3729.3,3729.2,4.17857]
[1753542036546,6.0181,3729.3,3729.2,6.63847]
[1753542037257,2.3618,3729.4,3729.3,6.63846]
[1753542037455,0.9309,3729.4,3729.3,6.63846]
[1753542037957,13.227,3729.6,3729.5,6.63844]
[1753542038156,0.9309,3729.6,3729.5,6.63844]
[1753542038357,17.3647,3729.8,3729.7,6.63841]
[1753542038560,18.0880034,3729.8,3729.7,6.63841]
[1753542038758,4.8620034,3729.8,3729.7,6.63841]
[1753542038955,3.9311034,3729.8,3729.7,6.63841]
[1753542039656,4.8620034,3729.8,3729.7,6.63841]
[1753542039859,5.4680034,3729.8,3729.7,6.63841]
[1753542040253,7.9468034,3729.8,3729.7,6.63841]
[1753542041561,7.2235,3729.8,3729.7,6.63841]
[1753542041858,19.2411,3730.1,3730.0,2.4047]
[1753542042059,19.9643538,3730.1,3730.0,6.63836]
[1753542042261,6.7413538,3730.1,3730.0,6.63836]
[1753542042562,19.9633538,3730.1,3730.0,6.63836]
[1753542042761,20.4993038,3730.1,3730.0,6.63836]
[1753542042962,20.4993038,3730.1,3730.0,6.1024]
[1753542043161,3.01951,3729.7,3729.6,2.4047]
[1753542043360,2.4835,3729.3,3729.2,3.9551]
[1753542043664,6.0181,3729.3,3729.2,5.40068]
[1753542043863,6.0181,3729.3,3729.2,6.63848]
[1753542046160,6.0181,3729.6,3729.5,6.63844]
[1753542046365,1.5369,3729.6,3729.5,6.63844]
[1753542046666,7.1582,3729.8,3729.7,6.1024]
[1753542046855,8.0531,3729.8,3729.7,6.63841]
[1753542047055,3.5346,3729.7,3729.6,0.53601]
[1753542047366,3.4144,3729.7,3729.6,6.63841]
[1753542047568,6.0181,3729.7,3729.6,6.63841]
[1753542047875,6.0181,3729.7,3729.6,5.1929]